Workbook

Sheet 表12-本會參加性別主流化課程人次性別比例
A1: 本會參加性別主流化課程人次性別比例
A2: 表12
A3: 年別 | B3: 總計 | D3: 男 | F3: 女
B4: 人次 | C4: 比例 | D4: 人次 | E4: 比例 | F4: 人次 | G4: 比例
A5: 99年 | B5: =SUM(D5+F5) -> 128 | C5: =E5+G5 -> 100% | D5: 59 | E5: =SUM(D5/B5) -> 46.1% | F5: 69 | G5: =SUM(F5/B5) -> 53.9%
A6: 100年 | B6: =SUM(D6+F6) -> 202 | C6: =E6+G6 -> 100% | D6: 115 | E6: =SUM(D6/B6) -> 56.9% | F6: 87 | G6: =SUM(F6/B6) -> 43.1%
A7: 101年 | B7: 119 | C7: 100% | D7: 58 | E7: 48.7% | F7: 61 | G7: 51.3%
A8: 102年 | B8: 120 | C8: 100% | D8: 84 | E8: 70.0% | F8: 36 | G8: 30.0%
A9: 103年 | B9: =SUM(D9+F9) -> 226 | C9: 100% | D9: 147 | E9: 65.0% | F9: 79 | G9: 35.0%
A10: 104年 | B10: 203 | C10: 100% | D10: 122 | E10: 60.1% | F10: 81 | G10: 39.9%
A11: 105年 | B11: =D11+F11 -> 229 | C11: 100% | D11: 138 | E11: =SUM(D11/B11) -> 60.3% | F11: 91 | G11: 39.7%
A12: 106年 | B12: 206 | C12: 100% | D12: 118 | E12: 57.3% | F12: 88 | G12: 42.7%
A13: 107年 | B13: =SUM(D13+F13) -> 233 | C13: =E13+G13 -> 100% | D13: 134 | E13: =SUM(D13/B13) -> 57.5% | F13: 99 | G13: =SUM(F13/B13) -> 42.5%
A14: 108年 | B14: =SUM(D14+F14) -> 407 | C14: 100% | D14: 233 | E14: 57.2% | F14: 174 | G14: 42.8%
A15: 109年 | B15: =SUM(D15+F15) -> 266 | C15: 100% | D15: 142 | E15: 53.4% | F15: 124 | G15: 46.6%
A16: 110年 | B16: 257 | C16: 100% | D16: 133 | E16: 51.8% | F16: 124 | G16: 48.2%
A17: 111年 | B17: 316 | C17: 100% | D17: 160 | E17: 50.6% | F17: 156 | G17: 49.4%
A18: 112年 | B18: 624 | C18: 100% | D18: 309 | E18: 49.5% | F18: 315 | G18: 50.5%
A19: 113年 | B19: 474 | C19: =E19+G19 -> 100% | D19: 218 | E19: =SUM(D19/B19) -> 46.0% | F19: 256 | G19: =SUM(F19/B19) -> 54.0%
A20: 資料來源：人事室
A21: 備註： 1.性別資料使用：本會近三年參加性別主流化課程人次之男女比例接近各半，又女性參與上開課程之比例有上升趨勢。113年數據係以辦理4場次性別主流化訓練課程之參訓人次為計算基準。 2.應用深化：上開統計資料可作為本會各年度辦理性別主流化課程主題選定及邀請同仁參訓之參考。 3.未進行國際性別統計比較原因說明：茲考量其他國家政府組織型態、功能任務迥異，爰未能就與本會業務性質與角色功能完全相同之國外政府機關進行國際比較。
